[Event "IIFL Wealth 4th Mumbai GM"]
[Site "Mumbai"]
[Date "2019.01.01"]
[Round "3"]
[White "Chowdhury, Sohel"]
[Black "Dhungel, Uttam"]
[Result "1-0"]
[ECO "B23"]
[WhiteElo "2012"]
[BlackElo "1587"]
[Annotator "NA RC"]
[PlyCount "57"]
[EventDate "2018.12.30"]
[EventType "swiss"]
[EventCountry "IND"]
[SourceTitle "playchess.com"]
[Source "ChessBase"]
[SourceQuality "1"]
[TimeControl "40/5400+30:1800+30"]

1. e4 {[%emt 0:00:00]} c5 {[%emt 0:04:04]} 2. Nc3 {[%emt 0:00:22]} e6 {[%emt 0:00:11]} 3. g3 {[%emt 0:00:19]} d5 {[%emt 0:00:49]} 4. Bg2 {[%emt 0:00:09]} d4 {[%emt 0:01:08]} 5. Nce2 {[%emt 0:00:05]} e5 {[%emt 0:00:44]} 6. d3 {[%emt 0:00:34]} Nc6 {[%emt 0:02:02]} 7. f4 {[%emt 0:00:23]} g6 {[%emt 0:02:18]} 8. Nf3 {[%emt 0:00:18]} Bg7 {[%emt 0:02:21]} 9. O-O {[%emt 0:00:36]} Nge7 {[%emt 0:00:36]} 10. fxe5 {[%emt 0:08:41]} Nxe5 {[%emt 0:02:19]} 11. Nxe5 {[%emt 0:00:26]} Bxe5 {[%emt 0:00:27]} 12. Bh6 {[%emt 0:00:51]} Bg4 {[%emt 0:03:28]} 13. Qd2 {[%emt 0:03:46]} Qd7 {[%emt 0:02:54]} 14. Rf2 {[%emt 0:03:26]} Bxe2 {[%emt 0:14:03]} 15. Qxe2 {[%emt 0:00:52]} Nc6 {[%emt 0:02:48]} 16. Qf1 {[%emt 0:07:25]} Nd8 {[%emt 0:04:06]} (16... Qe7 $14) 17. Qe2 $11 {[%emt 0:03:04]} (17. a4 $14) 17... Nc6 {[%emt 0:07:00]} 18. Raf1 {[%emt 0:03:05]} f6 {[%emt 0:03:03]} 19. a3 {[%emt 0:08:42]} O-O-O {[%emt 0:06:41]} 20. Bf4 {[%emt 0:04:31]} Rhe8 {[%emt 0:07:12]} 21. Qd2 {[%emt 0:03:03]} a5 {[%emt 0:05:38]} 22. Bxe5 {[%emt 0:01:15]} fxe5 {[%emt 0:00:29]} 23. Qh6 {[%emt 0:00:13]} Kb8 {[%emt 0:07:18]} 24. Rf7 {[%emt 0:01:15]} Qe6 {[%emt 0:06:28]} 25. Qxh7 {[%emt 0:01:00]} Rh8 {[%emt 0:02:39]} 26. Rxb7+ {[%emt 0:01:32]} Ka8 {[%emt 0:00:38]} 27. Qc7 {[%emt 0:02:36]} Rb8 {[%emt 0:04:45]} 28. Rf7 {[%emt 0:01:25]} Qxf7 {[%emt 0:03:36]} 29. Rxb8+ {[%emt 0:00:10]} 1-0

[Event "IIFL Wealth 4th Mumbai GM"]
[Site "Mumbai"]
[Date "2019.01.01"]
[Round "3"]
[White "Triton, Maxime"]
[Black "Ahsan, Ali Jewel"]
[Result "1-0"]
[ECO "B40"]
[WhiteElo "1937"]
[BlackElo "1363"]
[Annotator "NA RC"]
[PlyCount "57"]
[EventDate "2018.12.30"]
[EventType "swiss"]
[EventCountry "IND"]
[SourceTitle "playchess.com"]
[Source "ChessBase"]
[SourceQuality "1"]
[TimeControl "40/5400+30:1800+30"]

1. e4 {[%emt 0:00:00]} c5 {[%emt 0:00:00]} 2. Nf3 {[%emt 0:00:00]} e6 {[%emt 0:00:09]} 3. Nc3 {[%emt 0:00:00]} Nf6 {[%emt 0:00:32]} 4. e5 {[%emt 0:01:59]} Nd5 {[%emt 0:01:12]} 5. Nxd5 {[%emt 0:01:09]} exd5 {[%emt 0:00:43]} 6. d4 {[%emt 0:00:03]} c4 {[%emt 0:01:11]} 7. Be2 {[%emt 0:04:06]} Be7 {[%emt 0:00:46]} 8. O-O {[%emt 0:00:42]} Nc6 {[%emt 0:01:39]} 9. Bf4 {[%emt 0:04:30]} O-O {[%emt 0:01:45]} 10. b3 {[%emt 0:06:19]} b5 {[%emt 0:03:38]} 11. a4 {[%emt 0:05:32]} Ba6 {[%emt 0:11:13]} 12. axb5 {[%emt 0:03:50]} Bxb5 {[%emt 0:00:25]} 13. bxc4 {[%emt 0:03:17]} Bxc4 {[%emt 0:02:08]} 14. Bxc4 {[%emt 0:03:08]} dxc4 {[%emt 0:00:22]} 15. d5 {[%emt 0:00:55]} Nb8 {[%emt 0:08:00]} 16. d6 {[%emt 0:01:46]} Bh4 {[%emt 0:03:08]} 17. g3 {[%emt 0:00:57]} g5 {[%emt 0:00:38]} 18. Be3 {[%emt 0:02:09]} Nc6 {[%emt 0:10:08]} 19. gxh4 {[%emt 0:14:09]} gxh4 {[%emt 0:01:00]} 20. Bg5 {[%emt 0:02:50]} Qb6 {[%emt 0:02:02]} 21. Bf6 {[%emt 0:05:25]} h6 {[%emt 0:08:52]} 22. Qd2 {[%emt 0:00:58]} Kh7 {[%emt 0:01:01]} 23. Qf4 {[%emt 0:03:36]} Rg8+ {[%emt 0:02:31]} 24. Kh1 {[%emt 0:00:02]} h3 {[%emt 0:03:14]} 25. Ra3 {[%emt 0:12:48]} Qc5 {[%emt 0:04:15]} 26. Qe4+ {[%emt 0:01:31]} Rg6 {[%emt 0:02:42]} 27. Ng5+ {[%emt 0:00:20]} Kg8 {[%emt 0:06:10]} 28. Rxh3 {[%emt 0:00:02]} Nd8 {[%emt 0:03:43]} 29. Qxa8 {[%emt 0:01:35] Kh7} 1-0

[Event "IIFL Wealth 4th Mumbai GM"]
[Site "Mumbai"]
[Date "2019.01.01"]
[Round "3"]
[White "Bhasima, Prashan"]
[Black "Kavinda, Akila"]
[Result "0-1"]
[ECO "B06"]
[WhiteElo "1658"]
[BlackElo "2092"]
[Annotator "NA RC"]
[PlyCount "100"]
[EventDate "2018.12.30"]
[EventType "swiss"]
[EventCountry "IND"]
[SourceTitle "playchess.com"]
[Source "ChessBase"]
[SourceQuality "1"]
[TimeControl "40/5400+30:1800+30"]

1. e4 {[%emt 0:01:46]} g6 {[%emt 0:00:00]} 2. d4 {[%emt 0:00:03]} Bg7 {[%emt 0:00:00]} 3. Nf3 {[%emt 0:01:01]} d6 {[%emt 0:00:00]} 4. Bc4 {[%emt 0:00:25]} Nf6 {[%emt 0:00:56]} 5. Nc3 {[%emt 0:03:38]} O-O {[%emt 0:01:14]} 6. Be3 {[%emt 0:01:30]} Nc6 {[%emt 0:11:48]} 7. O-O {[%emt 0:09:18]} Bg4 {[%emt 0:00:52]} 8. h3 {[%emt 0:01:35]} Bxf3 {[%emt 0:01:10]} 9. Qxf3 {[%emt 0:01:14]} e5 {[%emt 0:05:35]} 10. dxe5 {[%emt 0:08:24]} Nxe5 {[%emt 0:01:25]} 11. Qe2 {[%emt 0:00:02]} Nxc4 {[%emt 0:02:52] B08: Pirc Defence: Classical System} 12. Qxc4 {[%emt 0:00:03]} Re8 {[%emt 0:01:17]} 13. Rfe1 {[%emt 0:05:35]} (13. Rad1 a6 14. a4 Re6 15. f3 c6 16. Qb3 Qc7 17. Qb6 Qe7 18. Bg5 h6 19. Bh4 {0-1 (56) Vallejo Pons,F (2705)-Gashimov,V (2757) Beijing 2011}) 13... Nxe4 {[%emt 0:18:45]} 14. Nxe4 {[%emt 0:02:59]} d5 {[%emt 0:00:08]} 15. Qb3 {[%emt 0:06:36]} dxe4 $146 {[%emt 0:01:02]} ({Predecessor:} 15... Rxe4 16. Qxb7 Rb8 17. Qxa7 Rxb2 18. Rab1 Reb4 19. Rxb2 Rxb2 {0-1 (33) Villarreal,J-Mejia,D Bilin 2008}) 16. Qxb7 {[%emt 0:02:04]} Qb8 {[%emt 0:01:25]} 17. Qxb8 {[%emt 0:04:18]} Rexb8 {[%emt 0:03:47]} 18. Rab1 {[%emt 0:00:03]} Rxb2 {[%emt 0:04:30]} 19. Rxb2 {[%emt 0:00:50]} Bxb2 {[%emt 0:00:05]} 20. Rb1 {[%emt 0:00:43]} Be5 {[%emt 0:00:43]} 21. Rb7 {[%emt 0:12:18]} a6 {[%emt 0:00:25]} 22. Kf1 {[%emt 0:00:31]} Kf8 {[%emt 0:01:16]} 23. c4 {[%emt 0:06:22]} Ke7 {[%emt 0:02:24]} 24. f4 {[%emt 0:01:32]} exf3 {[%emt 0:00:07]} 25. gxf3 {[%emt 0:00:01]} Kd7 {[%emt 0:02:15]} 26. Ke2 {[%emt 0:02:40]} Kc6 {[%emt 0:01:50]} 27. Rb1 {[%emt 0:02:04]} Re8 {[%emt 0:02:42]} 28. Kd3 {[%emt 0:01:22]} Rd8+ {[%emt 0:00:37]} 29. Ke4 {[%emt 0:03:44]} Bd6 {[%emt 0:00:13]} 30. Bd4 {[%emt 0:05:53]} f5+ {[%emt 0:13:55]} 31. Ke3 {[%emt 0:01:11]} Bf4+ {[%emt 0:06:01]} 32. Kxf4 {[%emt 0:00:42]} Rxd4+ {[%emt 0:00:04]} 33. Ke5 {[%emt 0:06:08]} Rxc4 {[%emt 0:00:36]} 34. Rb2 {[%emt 0:00:28]} Rc3 {[%emt 0:03:30]} 35. Rf2 $1 $11 {[%emt 0:00:23] and White has nothing to worry.} Rc1 {[%emt 0:00:41]} 36. Rh2 {[%emt 0:00:42]} Rc3 $11 {[%emt 0:07:35]} (36... Kb5 $19 37. Rb2+ Kc6) 37. Kf4 $2 {[%emt 0:00:03]} Kd5 {[%emt 0:00:52]} 38. h4 {[%emt 0:01:20]} Ke6 {[%emt 0:01:08]} 39. h5 {[%emt 0:02:52]} Kf6 {[%emt 0:00:11]} 40. hxg6 {[%emt 0:00:00]} hxg6 {[%emt 0:00:00]} 41. Re2 {[%emt 0:01:57]} g5+ {[%emt 0:00:24]} 42. Kg3 {[%emt 0:00:39]} g4 {[%emt 0:00:14]} 43. Kh2 {[%emt 0:00:20]} Rxf3 {[%emt 0:00:31]} 44. Rc2 {[%emt 0:00:04]} Ra3 {[%emt 0:00:08]} 45. Rxc7 {[%emt 0:00:44]} Rxa2+ {[%emt 0:00:05]} 46. Kg3 {[%emt 0:00:27]} Ra3+ {[%emt 0:00:05]} 47. Kg2 {[%emt 0:00:27]} a5 {[%emt 0:00:17]} 48. Rc5 {[%emt 0:00:18]} a4 {[%emt 0:00:07]} 49. Rc4 {[%emt 0:00:40]} Kg5 {[%emt 0:00:14]} 50. Rc2 {[%emt 0:00:14]} Rb3 {[%emt 0:00:09]} 0-1

[Event "IIFL Wealth 4th Mumbai GM"]
[Site "Mumbai"]
[Date "2019.01.01"]
[Round "3"]
[White "Regmi, Shikhar"]
[Black "abzid, Rahman"]
[Result "0-1"]
[ECO "B43"]
[WhiteElo "1610"]
[BlackElo "2040"]
[Annotator "NA RC"]
[PlyCount "76"]
[EventDate "2018.12.30"]
[EventType "swiss"]
[EventCountry "IND"]
[SourceTitle "playchess.com"]
[Source "ChessBase"]
[SourceQuality "1"]
[TimeControl "40/5400+30:1800+30"]

1. e4 {[%emt 0:02:09]} c5 {[%emt 0:00:05]} 2. Nf3 {[%emt 0:00:16]} e6 {[%emt 0:00:08]} 3. d4 {[%emt 0:00:10]} cxd4 {[%emt 0:00:11]} 4. Nxd4 {[%emt 0:00:06]} a6 {[%emt 0:00:28]} 5. Nc3 {[%emt 0:00:28]} Qc7 {[%emt 0:00:37]} 6. Be2 {[%emt 0:00:42]} Nc6 {[%emt 0:00:41]} 7. O-O {[%emt 0:00:35]} Nf6 {[%emt 0:00:46]} 8. Kh1 {[%emt 0:01:15]} d6 {[%emt 0:01:22]} 9. f4 {[%emt 0:00:41]} Bd7 {[%emt 0:00:15]} 10. Be3 {[%emt 0:00:45]} Be7 {[%emt 0:00:39]} 11. Qe1 {[%emt 0:02:36]} b5 {[%emt 0:02:39]} 12. a3 {[%emt 0:02:45] B84: Sicilian Scheveningen: 6 Be2 a6, lines without early Be3} e5 {[%emt 0:02:57]} (12... O-O 13. Qg3 b4 14. Nxc6 Bxc6 15. axb4 Nxe4 16. Nxe4 Bxe4 17. c3 a5 18. Bd4 g6 19. b5 d5 20. Qe3 Qb7 21. Ra4 {1-0 (33) Harikrishna,P (2729)-Liang,J (2452) China 2018}) 13. Nxc6 {[%emt 0:00:34]} Bxc6 {[%emt 0:00:14]} 14. fxe5 $146 {[%emt 0:00:37]} ({Predecessor:} 14. Bf3 Qb7 15. Qg3 {½-½ (16) Savic,G (2154)-Necevski,A (2301) Serbia 2011}) 14... dxe5 {[%emt 0:00:34]} 15. Bg5 {[%emt 0:01:36]} O-O {[%emt 0:04:06]} 16. Bxf6 {[%emt 0:00:11]} Bxf6 {[%emt 0:05:23]} 17. Rxf6 {[%emt 0:00:09]} gxf6 {[%emt 0:00:01]} 18. Bg4 {[%emt 0:01:02]} f5 {[%emt 0:04:46]} 19. Bxf5 {[%emt 0:00:32]} f6 {[%emt 0:01:33]} 20. Qh4 {[%emt 0:01:42]} Kh8 {[%emt 0:00:51]} 21. Rd1 {[%emt 0:00:44]} Ra7 {[%emt 0:01:23]} 22. Rd3 {[%emt 0:02:11]} Qe7 {[%emt 0:01:05]} 23. Rh3 {[%emt 0:00:53]} Rf7 {[%emt 0:01:02]} 24. Qh6 {[%emt 0:04:54]} a5 {[%emt 0:01:14]} 25. Nd5 {[%emt 0:02:01]} Bxd5 {[%emt 0:03:56]} 26. exd5 {[%emt 0:00:05]} b4 {[%emt 0:00:24]} 27. a4 {[%emt 0:00:55]} Rg7 {[%emt 0:02:30]} 28. Be6 $15 {[%emt 0:01:16]} Rc7 {[%emt 0:04:30]} 29. Bf5 {[%emt 0:08:17]} Rc4 {[%emt 0:04:07]} 30. Qe3 {[%emt 0:05:30]} Rd4 {[%emt 0:01:34]} 31. Bd3 {[%emt 0:01:54]} f5 {[%emt 0:00:42]} 32. g3 {[%emt 0:01:57]} Qd6 {[%emt 0:02:35]} 33. Qf3 {[%emt 0:03:43]} e4 {[%emt 0:01:30]} 34. Qxf5 {[%emt 0:03:45]} exd3 {[%emt 0:00:25]} 35. Qc8+ {[%emt 0:00:09]} Rg8 {[%emt 0:00:06]} 36. Rxh7+ {[%emt 0:01:15]} Kxh7 {[%emt 0:00:01]} 37. Qf5+ Rg6 {[%emt 0:00:27]} 38. Qf7+ {[%emt 0:00:41]} Kh6 {[%emt 0:00:05]} 0-1

[Event "IIFL Wealth 4th Mumbai GM"]
[Site "Mumbai"]
[Date "2019.01.01"]
[Round "3"]
[White "Laoussing, Mathis"]
[Black "Thapa, Krishna"]
[Result "0-1"]
[ECO "B22"]
[WhiteElo "1438"]
[BlackElo "2024"]
[Annotator "NA RC"]
[PlyCount "47"]
[EventDate "2018.12.30"]
[EventType "swiss"]
[EventCountry "IND"]
[SourceTitle "playchess.com"]
[Source "ChessBase"]
[SourceQuality "1"]
[TimeControl "40/5400+30:1800+30"]

1. e4 {[%emt 0:00:00]} c5 {[%emt 0:00:00]} 2. c3 {[%emt 0:00:00]} Nf6 {[%emt 0:00:00]} 3. e5 {[%emt 0:00:18]} Nd5 {[%emt 0:00:00]} 4. d4 {[%emt 0:00:07]} e6 {[%emt 0:00:00]} 5. Bc4 {[%emt 0:01:28]} Nb6 {[%emt 0:00:29]} 6. Qe2 {[%emt 0:02:56]} Nxc4 {[%emt 0:02:49]} 7. Qxc4 {[%emt 0:00:10]} b6 {[%emt 0:01:09]} 8. Na3 {[%emt 0:10:41]} cxd4 {[%emt 0:04:58]} 9. Nb5 {[%emt 0:01:42]} Nc6 {[%emt 0:00:41]} 10. cxd4 {[%emt 0:01:35]} Bb4+ {[%emt 0:00:17]} 11. Bd2 {[%emt 0:02:19]} Bxd2+ {[%emt 0:00:15]} 12. Kxd2 {[%emt 0:00:06]} Qg5+ {[%emt 0:00:24]} 13. Ke2 {[%emt 0:00:22]} O-O {[%emt 0:00:30]} 14. Nf3 {[%emt 0:01:42]} Qh5 {[%emt 0:01:23]} 15. Nd6 {[%emt 0:04:15]} b5 {[%emt 0:02:06]} 16. Qd3 {[%emt 0:02:34]} Ba6 {[%emt 0:00:42]} 17. Ne4 {[%emt 0:19:37]} Nb4 {[%emt 0:04:50]} 18. Qd2 {[%emt 0:00:45]} Nd5 $11 {[%emt 0:00:29]} 19. b4 {[%emt 0:02:37]} Bb7 {[%emt 0:00:12]} 20. Nd6 {[%emt 0:01:42]} Bc6 {[%emt 0:00:06]} 21. Rhe1 {[%emt 0:00:49]} Qg4 {[%emt 0:00:30]} 22. Rg1 {[%emt 0:11:28]} Nf4+ {[%emt 0:00:47]} 23. Kf1 {[%emt 0:00:31]} Bxf3 {[%emt 0:00:45]} 24. Ke1 {[%emt 0:03:15]} 0-1